{"text_format":"1","workbook":"xlsx","n_sheets":2,"sheets":["Abovertrag","Einrichtungen"],"not_rendered":{"charts":0,"images":1,"macros":1,"external_links":0,"defined_names":2,"comments":0,"pivot_tables":0},"unopened":[],"bounds":{"document_bytes":16777216,"sheet_cells":100000,"rows_first":2000,"rows_last":500,"rows_between":2000,"halvings":0,"cell_chars":16384,"cell_head_chars":4096},"cells_cut":0,"cells_raw":0,"read":"whole","date_system":"1900"}

{"sheet":"Abovertrag","index":0,"n_rows":86,"n_cols":10,"rows_kept":86,"cut":false,"hidden":false,"merged":[[4,0,4,6],[34,0,34,6],[41,0,41,6],[52,0,52,6],[53,0,53,6],[46,0,46,6],[47,0,47,6],[14,4,14,6],[35,0,35,6],[42,0,42,6],[44,0,44,6],[45,0,45,1],[45,2,45,3],[45,4,45,6],[43,0,43,6],[36,0,36,2],[85,0,85,1],[85,2,85,3],[85,4,85,6],[70,0,70,1],[70,2,70,6],[73,0,73,1],[77,0,77,6],[84,0,84,6],[75,0,75,2],[78,0,78,6],[80,0,80,6],[83,0,83,6],[66,0,66,1],[67,0,67,1],[67,2,67,3],[68,0,68,1],[69,0,69,1],[69,2,69,6],[60,0,60,6],[61,0,61,6],[63,0,63,6],[64,0,64,1],[65,0,65,1],[57,0,57,3],[59,0,59,6],[56,0,56,6],[58,0,58,3],[49,0,49,6],[51,0,51,6],[54,0,54,6]]}
["GFB Catering GmbH",null,"HEINZEL food GmbH & Co. KG",null,"                  Tel:  0341/ 44 82 110  Fax: -114"]
["Gutenbergstr. 11",null,"Rückmarsdorfer Str. 22A",null,"                  E-Mail: leipzig@gfb-catering.com",null,null,1,42,"r"]
["04178 Leipzig",null,"04179 Leipzig",null,"                  Web:    www.gfb-catering.com"]
[]
["Contract for school supplies between GFB Catering GmbH & HEINZEL food GmbH & Co. KG and"]
["surname, first name of parents"]
["for surname, first name of the child"]
["Customer number.",null,null,"(Customer number. will be communicated to you by GFB)"]
["birth date"]
["Street, Nr."]
["Postal code",null,null,"Ort"]
["Phonenumber.* (*required)",null,null,null,"Fax"]
["E-Mail"]
["School",null,"Grundschule am Leutzscher Holz"]
["Class"]
["start of delivery:  "]
[]
[]
["food supply",{"$f":"IF($C$19=0,$K$2,$J$2)","v":"r"},{"$f":"INDEX(Einrichtungen!$G$2:$G$43,Abovertrag!I$2,1)","v":"Mittag"}]
[]
["discount",{"$f":"IF($C$19=0,$K$2,$J$2)","v":"r"},"Education and participation package (please enclose valid proof)"]
[]
["payment method","         For the direct debit procedure, please be sure to fill out the SEPA direct debit mandate overleaf!"]
["(monthly)"]
["1.",{"$f":"IF($C$25=0,2,$J$2)","v":"r"},"by direct debit, with receipt by post (€0.84 per receipt)"]
[null,{"$f":"IF($C$25=0,2,$J$2)","v":"r"},"by direct debit, with receipt sent by e-mail (free of charge)"]
[]
[]
[]
[null,"The invoices are to be paid within 5 days of receipt of the invoice."]
["2.",{"$f":"IF($C$25=0,2,$J$2)","v":"r"},"by bank transfer, with receipt by post (0.84 € per receipt)"]
[null,{"$f":"IF($C$25=0,2,$J$2)","v":"r"},"by bank transfer, with receipt by e-mail (free of charge)"]
[]
[]
["  X   I hereby authorize GFB to provide meals for my child named above                                                                                              (see price table above including VAT)."]
["  X   I hereby authorize the service company, HEINZEL food GmbH & Co. KG, to serve out the food delivered by GFB and to wash the crockery and cutlery provided."]
["Prices lunch supply in euros",null,null,null,null,"(incl. VAT)"]
["DGE-Linie","Pasta-Linie","Kids-Linie","100% BIO-Menü","Coldmenü","Saladplate","Special diet"]
[3.04,3.04,3.04,3.84,3.04,3.04,3.04]
[1.01,1.01,1.01,1.01,1.01,1.01,1.01]
[4.05,{"$f":"B39+B40","v":4.05},4.05,4.8499999999999996,4.05,4.05,4.05]
["The prices can be adjusted again before the start of the 2023/2024 school year.\nThe current prices are then visible to you in the app / online portal."]
["GFB and HEINZEL food are authorized to increase the prices in this regard in the event of changes in the law, such as an increase in the statutory value added tax or the statutory minimum wage, which comes into force during the term of the framework agreement on the basis of which the individual contract was concluded. It is made clear that such changes in the law can relate to all service areas of the caterer. GFB / HEINZEL food have to prove the effects of the change in law to the city of Leipzig. The prices can only be adjusted if and to the extent that such effects can be proven. A price adjustment requires the prior consent of the City of Leipzig, which it may not refuse if the above conditions are met."]
["The appendices letter to parents/contract information, payment agreement, data protection agreement and, if applicable, the SEPA direct debit mandate are hereby part of the contract. To end the supply, timely and written notice is required by the 20th calendar day for the following month."]
["Seite  1 von 2"]
["Registered:\nGFB Catering GmbH\nDistrict Court of Leipzig HRB 29635\nCreditor ID: DE66LPZ00000279305\nManaging Director: Benjamin Kroll\n",null,"Postal address:\n\nGutenbergstraße 11\n04178 Leipzig",null,"Bank details:\nTax number: 43/200/11618\nDeutsche Bank\nIBAN: DE76 8607 0024 0195 1144 00\nBIC: DEUTDEDBLEG"]
["When using the RFID chip card system, the following applies:"]
["Your child/ren will receive the RFID chip card including a card sleeve at the food counter. The card may not be written on, punched, folded or otherwise altered. Disclosure to third parties is prohibited. If the card is lost or defective, please arrange for the card to be blocked as soon as possible. A new card can be ordered via our hotline 0341 / 44 82 110 or by email to leipzig@gfb-catering.com.\nA card and processing fee of €10.00 will be charged for issuing a replacement card. We will invoice you for this fee with the next statement. We will send the replacement ticket to the school's food distribution at short notice. No personal data is stored on the RFID chip card!"]
[]
["SEPA - direct debit mandate"]
[]
["payee:                        "]
["Creditor Identifier: DE66LPZ00000279305"]
["mandate reference:                              L  P  Z  _  _  _  _  _  _             (e.g. LPZ123456) "]
["(to be filled in by the payee)"]
[]
["I (We) authorize the above payee to"]
["o one-time payment"]
["S recurring payments"]
["to collect from my (our) account via SEPA core direct debit."]
["At the same time, I instruct my (we instruct our) bank to redeem the direct debit(s) drawn from the above-mentioned payee to my (our) account."]
["Note: I (we can) request reimbursement of the amount charged within 8 weeks of the debit date. The conditions agreed with my (our) bank apply."]
[]
["Debtor (account holder)"]
["First name and surname:"]
["Street, house number:"]
["Postal code and city:"]
["Customer number.:",null," _ _ _ _ _ _"]
["Credit institution (name):"]
["BIC: ",null," _ _ _ _ _ _ _ _ | _ _ _"]
["IBAN: ",null,"DE _ _ | _ _ _ _ | _ _ _ _ | _ _ _ _ | _ _ _ _ | _ _"]
[]
[]
["Place and date"]
[]
["Signature(s) (account holder)"]
[]
["Note: The direct debit is always made by the 10th of the following month. If the execution day falls on a non-bank working day, the order will be executed on the next bank working day. You will receive advance information about the forthcoming debit with a notice period of 1 day in the form of your statement, which will account for the previous month."]
[]
["Withdrawal Agreement"]
["I/we can revoke this agreement within 14 days at GFB Catering GmbH and HEINZEL food GmbH & Co. KG. A short written notification with the revocation is sufficient. I/we confirm my/our acknowledgment of this guarantee and the contractual information with payment agreement with my/our signature."]
["……………………………..………………",null,"……………………………..……………………………..……………………………..……………………………..…………"]
["Date",null,"Signature"]
["The contract confirmation on the part of GFB Catering GmbH, represented by the management (Mr. Kroll) and by the service partner HEINZEL food GmbH & Co. KG, represented by K+G clinic- and building service GmbH, represented by the management (Mr. Pohl) is also available without signature."]
["Seite  2 von 2"]
["Registered:\nGFB Catering GmbH\nDistrict Court of Leipzig HRB 29635\nCreditor ID: DE66LPZ00000279305\nManaging Director: Benjamin Kroll\n",null,"Postal address:\n\nGutenbergstraße 11\n04178 Leipzig",null,"Bank details:\nTax number: 43/200/11618\nDeutsche Bank\nIBAN: DE76 8607 0024 0195 1144 00\nBIC: DEUTDEDBLEG"]

{"sheet":"Einrichtungen","index":1,"n_rows":43,"n_cols":23,"rows_kept":43,"cut":false,"hidden":false,"merged":[]}
["Schulnummer","KuNummer","Name der Schule","Schulart","Passart 1","Passart 2","Versorgungsart 1","Versorgungsart 2","Zahlungsarten 1","Zahlungsarten 2","Zahlungsarten 3","Zahlungsarten 4","Brutto konv.","Brutto Bio","Brutto SK","Brutto KV","Brutto oS konv.","Brutto oS Bio","Brutto oS SK"]
["20000",20,"!Muster Schule","Einsatz RFID-Chipkarten-System","Bildungs- und Teilhabepaket (bitte gültigen Nachweis beifügen)",null,"Mittag",1,"per Einzugsverfahren, mit Beleg per Postversand (0,84 € pro Beleg)","per Einzugsverfahren, mit Beleg per E-Mail-Versand (ohne weitere Kosten)","per Überweisung, mit Beleg per Postversand (0,84 € pro Beleg)","per Überweisung, mit Beleg per E-Mail-Versand (ohne weitere Kosten)"]
[469100,4691,"\"Am Bürgergarten\" Eilenburg","Einsatz Essenmarke","Bildungs- und Teilhabepaket (bitte gültigen Nachweis beifügen)",null,"Mittag",null,"per Einzugsverfahren, mit Beleg per Postversand (0,84 € pro Beleg)","per Einzugsverfahren, mit Beleg per E-Mail-Versand (ohne weitere Kosten)","per Überweisung, mit Beleg per Postversand (0,84 € pro Beleg)","per Überweisung, mit Beleg per E-Mail-Versand (ohne weitere Kosten)",3,4,3.7,3.1,null,null,null,"Menü",{"$f":"+M3-0.68","v":2.3199999999999998},{"$f":"+N3-0.68","v":3.32},3.02]
[456500,4565,"125. Oberschule","Einsatz RFID-Chipkarten-System","Bildungs- und Teilhabepaket (bitte gültigen Nachweis beifügen)",null,"Mittag",null,"per Einzugsverfahren, mit Beleg per Postversand (0,84 € pro Beleg)","per Einzugsverfahren, mit Beleg per E-Mail-Versand (ohne weitere Kosten)","per Überweisung, mit Beleg per Postversand (0,84 € pro Beleg)","per Überweisung, mit Beleg per E-Mail-Versand (ohne weitere Kosten)",3.4,4.25,3.95,3.5,null,null,null,"Menü",{"$f":"+M4-0.68","v":2.7199999999999998},3.57,3.27]
[466000,466,"33. Grundschule","Einsatz RFID-Chipkarten-System","Bildungs- und Teilhabepaket (bitte gültigen Nachweis beifügen)",null,"Mittag",null,"per Einzugsverfahren, mit Beleg per Postversand (0,84 € pro Beleg)","per Einzugsverfahren, mit Beleg per E-Mail-Versand (ohne weitere Kosten)","per Überweisung, mit Beleg per Postversand (0,84 € pro Beleg)","per Überweisung, mit Beleg per E-Mail-Versand (ohne weitere Kosten)",3.25,4.0999999999999996,3.85,3.35,null,null,null,"Menü",{"$f":"+M5-0.68","v":2.57},3.4199999999999995,3.17]
[457600,4576,"35. Oberschule","Einsatz RFID-Chipkarten-System","Bildungs- und Teilhabepaket (bitte gültigen Nachweis beifügen)",null,"Mittag",null,"per Einzugsverfahren, mit Beleg per Postversand (0,84 € pro Beleg)","per Einzugsverfahren, mit Beleg per E-Mail-Versand (ohne weitere Kosten)","per Überweisung, mit Beleg per Postversand (0,84 € pro Beleg)","per Überweisung, mit Beleg per E-Mail-Versand (ohne weitere Kosten)",3.4,4.25,3.95,3.5,null,null,null,"Menü",2.7199999999999998,3.57,3.27]
[454000,454,"Fritz-Baumgarten-Schule","Einsatz RFID-Chipkarten-System","Bildungs- und Teilhabepaket (bitte gültigen Nachweis beifügen)",null,"Mittag",null,"per Einzugsverfahren, mit Beleg per Postversand (0,84 € pro Beleg)","per Einzugsverfahren, mit Beleg per E-Mail-Versand (ohne weitere Kosten)","per Überweisung, mit Beleg per Postversand (0,84 € pro Beleg)","per Überweisung, mit Beleg per E-Mail-Versand (ohne weitere Kosten)",3.25,4.0999999999999996,3.85,3.35,null,null,null,"Menü",2.57,3.4199999999999995,3.17]
[432000,432,"78. Grundschule","Einsatz Essenmarke","Bildungs- und Teilhabepaket (bitte gültigen Nachweis beifügen)",null,"Mittag",null,"per Einzugsverfahren, mit Beleg per Postversand (0,84 € pro Beleg)","per Einzugsverfahren, mit Beleg per E-Mail-Versand (ohne weitere Kosten)","per Überweisung, mit Beleg per Postversand (0,84 € pro Beleg)","per Überweisung, mit Beleg per E-Mail-Versand (ohne weitere Kosten)",3.25,4.0999999999999996,3.85,3.35,null,null,null,"Menü",2.57,3.4199999999999995,3.17]
[433500,4335,"84. Oberschule","Einsatz Tagesliste","Bildungs- und Teilhabepaket (bitte gültigen Nachweis beifügen)",null,"Mittag",null,"per Einzugsverfahren, mit Beleg per Postversand (0,84 € pro Beleg)","per Einzugsverfahren, mit Beleg per E-Mail-Versand (ohne weitere Kosten)","per Überweisung, mit Beleg per Postversand (0,84 € pro Beleg)","per Überweisung, mit Beleg per E-Mail-Versand (ohne weitere Kosten)",3.4,4.25,3.95,3.5,null,null,null,"Menü",2.7199999999999998,3.57,3.27]
[453500,4535,"94. Oberschule","Einsatz RFID-Chipkarten-System","Bildungs- und Teilhabepaket (bitte gültigen Nachweis beifügen)",null,"Mittag",null,"per Einzugsverfahren, mit Beleg per Postversand (0,84 € pro Beleg)","per Einzugsverfahren, mit Beleg per E-Mail-Versand (ohne weitere Kosten)","per Überweisung, mit Beleg per Postversand (0,84 € pro Beleg)","per Überweisung, mit Beleg per E-Mail-Versand (ohne weitere Kosten)",3.4,4.25,3.95,3.5,null,null,null,"Menü",2.7199999999999998,3.57,3.27]
[451000,451,"A.-F.-Oeser-Schule","Einsatz RFID-Chipkarten-System","Bildungs- und Teilhabepaket (bitte gültigen Nachweis beifügen)",null,"Mittag",null,"per Einzugsverfahren, mit Beleg per Postversand (0,84 € pro Beleg)","per Einzugsverfahren, mit Beleg per E-Mail-Versand (ohne weitere Kosten)","per Überweisung, mit Beleg per Postversand (0,84 € pro Beleg)","per Überweisung, mit Beleg per E-Mail-Versand (ohne weitere Kosten)",3.25,4.0999999999999996,3.85,3.35,null,null,null,"Menü",2.57,3.4199999999999995,3.17]
[463500,4635,"A.-Lindgren-Schule","Einsatz Essenmarke","Bildungs- und Teilhabepaket (bitte gültigen Nachweis beifügen)",null,"Mittag",null,"per Einzugsverfahren, mit Beleg per Postversand (0,84 € pro Beleg)","per Einzugsverfahren, mit Beleg per E-Mail-Versand (ohne weitere Kosten)","per Überweisung, mit Beleg per Postversand (0,84 € pro Beleg)","per Überweisung, mit Beleg per E-Mail-Versand (ohne weitere Kosten)",3.25,4.0999999999999996,3.85,3.35,null,null,null,"Menü",2.57,3.4199999999999995,3.17]
[471500,4715,"Schule Diderotstraße","Einsatz RFID-Chipkarten-System","Bildungs- und Teilhabepaket (bitte gültigen Nachweis beifügen)",null,"Mittag",null,"per Einzugsverfahren, mit Beleg per Postversand (0,84 € pro Beleg)","per Einzugsverfahren, mit Beleg per E-Mail-Versand (ohne weitere Kosten)","per Überweisung, mit Beleg per Postversand (0,84 € pro Beleg)","per Überweisung, mit Beleg per E-Mail-Versand (ohne weitere Kosten)",3.4,4.25,3.95,3.5,null,null,null,"Menü",2.7199999999999998,3.57,3.27]
[459000,459,"Brockhaus-Gymnasium","Einsatz RFID-Chipkarten-System","Bildungs- und Teilhabepaket (bitte gültigen Nachweis beifügen)",null,"Mittag",null,"per Einzugsverfahren, mit Beleg per Postversand (0,84 € pro Beleg)","per Einzugsverfahren, mit Beleg per E-Mail-Versand (ohne weitere Kosten)","per Überweisung, mit Beleg per Postversand (0,84 € pro Beleg)","per Überweisung, mit Beleg per E-Mail-Versand (ohne weitere Kosten)",3.5,4.3499999999999996,3.95,3.6,null,null,null,"Menü mit Salattheke",{"$f":"+M14-0.7","v":2.8},3.6499999999999995,3.25]
[450000,450,"Brüder-Grimm-Schule GS","Einsatz RFID-Chipkarten-System","Bildungs- und Teilhabepaket (bitte gültigen Nachweis beifügen)",null,"Mittag",null,"per Einzugsverfahren, mit Beleg per Postversand (0,84 € pro Beleg)","per Einzugsverfahren, mit Beleg per E-Mail-Versand (ohne weitere Kosten)","per Überweisung, mit Beleg per Postversand (0,84 € pro Beleg)","per Überweisung, mit Beleg per E-Mail-Versand (ohne weitere Kosten)",3.35,4.2,3.85,3.45,null,null,null,"Menü mit Salattheke",2.6500000000000004,3.5,3.1500000000000004]
[461000,461,"Dieskau","Einsatz RFID-Chipkarten-System","Bildungs- und Teilhabepaket (bitte gültigen Nachweis beifügen)",null,"Mittag",null,"per Einzugsverfahren, mit Beleg per Postversand (0,84 € pro Beleg)","per Einzugsverfahren, mit Beleg per E-Mail-Versand (ohne weitere Kosten)","per Überweisung, mit Beleg per Postversand (0,84 € pro Beleg)","per Überweisung, mit Beleg per E-Mail-Versand (ohne weitere Kosten)",3,3.9,3.7,3.1,null,null,null,"Menü",{"$f":"+M16-0.63","v":2.37},{"$f":"+N16-0.63","v":3.27},{"$f":"+O16-0.63","v":3.0700000000000003}]
[455300,4553,"FÖS am Thonberg/ 2. ET (GS)","Einsatz Tagesliste","Bildungs- und Teilhabepaket (bitte gültigen Nachweis beifügen)",null,"Mittag",null,"per Einzugsverfahren, mit Beleg per Postversand (0,84 € pro Beleg)","per Einzugsverfahren, mit Beleg per E-Mail-Versand (ohne weitere Kosten)","per Überweisung, mit Beleg per Postversand (0,84 € pro Beleg)","per Überweisung, mit Beleg per E-Mail-Versand (ohne weitere Kosten)",3.25,4.0999999999999996,3.85,3.35,null,null,null,"Menü",{"$f":"+M17-0.68","v":2.57},3.4199999999999995,3.17]
[455300,4553,"FÖS am Thonberg/ 2. ET (OS)","Einsatz Tagesliste","Bildungs- und Teilhabepaket (bitte gültigen Nachweis beifügen)",null,"Mittag",null,"per Einzugsverfahren, mit Beleg per Postversand (0,84 € pro Beleg)","per Einzugsverfahren, mit Beleg per E-Mail-Versand (ohne weitere Kosten)","per Überweisung, mit Beleg per Postversand (0,84 € pro Beleg)","per Überweisung, mit Beleg per E-Mail-Versand (ohne weitere Kosten)",3.4,4.25,3.95,3.5,null,null,null,"Menü",2.7199999999999998,3.57,3.27]
[455200,4552,"FÖS am Thonberg/ 3.ET (GS)","Einsatz Tagesliste","Bildungs- und Teilhabepaket (bitte gültigen Nachweis beifügen)",null,"Mittag",null,"per Einzugsverfahren, mit Beleg per Postversand (0,84 € pro Beleg)","per Einzugsverfahren, mit Beleg per E-Mail-Versand (ohne weitere Kosten)","per Überweisung, mit Beleg per Postversand (0,84 € pro Beleg)","per Überweisung, mit Beleg per E-Mail-Versand (ohne weitere Kosten)",3.25,4.0999999999999996,3.85,3.35,null,null,null,"Menü",{"$f":"+M19-0.68","v":2.57},{"$f":"+N19-0.68","v":3.4199999999999995},{"$f":"+O19-0.68","v":3.17}]
[455200,4552,"FÖS am Thonberg/ 3. ET (OS)","Einsatz Tagesliste","Bildungs- und Teilhabepaket (bitte gültigen Nachweis beifügen)",null,"Mittag",null,"per Einzugsverfahren, mit Beleg per Postversand (0,84 € pro Beleg)","per Einzugsverfahren, mit Beleg per E-Mail-Versand (ohne weitere Kosten)","per Überweisung, mit Beleg per Postversand (0,84 € pro Beleg)","per Überweisung, mit Beleg per E-Mail-Versand (ohne weitere Kosten)",3.4,4.25,3.95,3.5,null,null,null,"Menü",2.7199999999999998,3.57,3.27]
[434000,434,"Grundschule Connewitz","Einsatz RFID-Chipkarten-System","Bildungs- und Teilhabepaket (bitte gültigen Nachweis beifügen)",null,"Mittag",null,"per Einzugsverfahren, mit Beleg per Postversand (0,84 € pro Beleg)","per Einzugsverfahren, mit Beleg per E-Mail-Versand (ohne weitere Kosten)","per Überweisung, mit Beleg per Postversand (0,84 € pro Beleg)","per Überweisung, mit Beleg per E-Mail-Versand (ohne weitere Kosten)",3.35,4.2,3.85,3.45,null,null,null,"Menü mit Salattheke",{"$f":"+M21-0.7","v":2.6500000000000004},{"$f":"+N21-0.7","v":3.5},{"$f":"+O21-0.7","v":3.1500000000000004}]
[461200,4612,"GS Gröbers","Einsatz RFID-Chipkarten-System","Bildungs- und Teilhabepaket (bitte gültigen Nachweis beifügen)",null,"Mittag",null,"per Einzugsverfahren, mit Beleg per Postversand (0,84 € pro Beleg)","per Einzugsverfahren, mit Beleg per E-Mail-Versand (ohne weitere Kosten)","per Überweisung, mit Beleg per Postversand (0,84 € pro Beleg)","per Überweisung, mit Beleg per E-Mail-Versand (ohne weitere Kosten)",3.1,3.95,3.7,3.2,null,null,null,"Menü mit Salattheke",{"$f":"+M22-0.63","v":2.4700000000000002},{"$f":"+N22-0.63","v":3.3200000000000003},{"$f":"+O22-0.63","v":3.0700000000000003}]
[435000,435,"GS Liebertwolkwitz","Einsatz RFID-Chipkarten-System","Bildungs- und Teilhabepaket (bitte gültigen Nachweis beifügen)",null,"Mittag",null,"per Einzugsverfahren, mit Beleg per Postversand (0,84 € pro Beleg)","per Einzugsverfahren, mit Beleg per E-Mail-Versand (ohne weitere Kosten)","per Überweisung, mit Beleg per Postversand (0,84 € pro Beleg)","per Überweisung, mit Beleg per E-Mail-Versand (ohne weitere Kosten)",3.35,4.2,3.85,3.45,null,null,null,"Menü mit Salattheke",{"$f":"+M23-0.7","v":2.6500000000000004},{"$f":"+N23-0.7","v":3.5},{"$f":"+O23-0.7","v":3.1500000000000004}]
[437300,4373,"GS Raguhn","Einsatz Essenmarke","Bildungs- und Teilhabepaket (bitte gültigen Nachweis beifügen)",null,"Mittag","Milch","per Einzugsverfahren, mit Beleg per Postversand (0,84 € pro Beleg)","per Einzugsverfahren, mit Beleg per E-Mail-Versand (ohne weitere Kosten)","per Überweisung, mit Beleg per Postversand (0,84 € pro Beleg)","per Überweisung, mit Beleg per E-Mail-Versand (ohne weitere Kosten)",3,3.9,3.7,3.1,null,null,null,"Menü",{"$f":"+M24-0.63","v":2.37},{"$f":"+N24-0.63","v":3.27},{"$f":"+O24-0.63","v":3.0700000000000003}]
[470000,470,"Gustav-Hertz-Gymnasium","Einsatz RFID-Chipkarten-System","Bildungs- und Teilhabepaket (bitte gültigen Nachweis beifügen)",null,"Mittag",null,"per Einzugsverfahren, mit Beleg per Postversand (0,84 € pro Beleg)","per Einzugsverfahren, mit Beleg per E-Mail-Versand (ohne weitere Kosten)","per Überweisung, mit Beleg per Postversand (0,84 € pro Beleg)","per Überweisung, mit Beleg per E-Mail-Versand (ohne weitere Kosten)",3.5,4.3499999999999996,3.95,3.6,null,null,null,"Menü mit Salattheke",{"$f":"+M25-0.7","v":2.8},3.6499999999999995,3.25]
[465000,465,"Lessing-OS Schkeuditz","Einsatz RFID-Chipkarten-System","Bildungs- und Teilhabepaket (bitte gültigen Nachweis beifügen)",null,"Mittag",null,"per Einzugsverfahren, mit Beleg per Postversand (0,84 € pro Beleg)","per Einzugsverfahren, mit Beleg per E-Mail-Versand (ohne weitere Kosten)","per Überweisung, mit Beleg per Postversand (0,84 € pro Beleg)","per Überweisung, mit Beleg per E-Mail-Versand (ohne weitere Kosten)",3,4,3.8,3.1,null,null,null,"Menü",{"$f":"+M26-0.63","v":2.37},{"$f":"+N26-0.63","v":3.37},{"$f":"+O26-0.63","v":3.17}]
[435500,4355,"OS Liebertwolkwitz","Einsatz RFID-Chipkarten-System","Bildungs- und Teilhabepaket (bitte gültigen Nachweis beifügen)",null,"Mittag",null,"per Einzugsverfahren, mit Beleg per Postversand (0,84 € pro Beleg)","per Einzugsverfahren, mit Beleg per E-Mail-Versand (ohne weitere Kosten)","per Überweisung, mit Beleg per Postversand (0,84 € pro Beleg)","per Überweisung, mit Beleg per E-Mail-Versand (ohne weitere Kosten)",3.5,4.3499999999999996,3.95,3.6,null,null,null,"Menü mit Salattheke",{"$f":"+M27-0.7","v":2.8},{"$f":"+N27-0.7","v":3.6499999999999995},{"$f":"+O27-0.7","v":3.25}]
[462500,4625,"OS Paunsdorf","Einsatz RFID-Chipkarten-System","Bildungs- und Teilhabepaket (bitte gültigen Nachweis beifügen)",null,"Mittag",null,"per Einzugsverfahren, mit Beleg per Postversand (0,84 € pro Beleg)","per Einzugsverfahren, mit Beleg per E-Mail-Versand (ohne weitere Kosten)","per Überweisung, mit Beleg per Postversand (0,84 € pro Beleg)","per Überweisung, mit Beleg per E-Mail-Versand (ohne weitere Kosten)",3.4,4.25,3.95,3.5,null,null,null,"Menü",2.7199999999999998,{"$f":"+N28-0.68","v":3.57},{"$f":"+O28-0.68","v":3.27}]
["452500",452,"Chr.-G.-Frege-OS","Einsatz RFID-Chipkarten-System","Bildungs- und Teilhabepaket (bitte gültigen Nachweis beifügen)",null,"Mittag",null,"per Einzugsverfahren, mit Beleg per Postversand (0,84 € pro Beleg)","per Einzugsverfahren, mit Beleg per E-Mail-Versand (ohne weitere Kosten)","per Überweisung, mit Beleg per Postversand (0,84 € pro Beleg)","per Überweisung, mit Beleg per E-Mail-Versand (ohne weitere Kosten)",3.4,4.25,3.95,3.5,null,null,null,"Menü",2.7199999999999998,{"$f":"+N29-0.68","v":3.57},{"$f":"+O29-0.68","v":3.27}]
[435499,4354,"Schule am Weißeplatz OS","Einsatz RFID-Chipkarten-System","Bildungs- und Teilhabepaket (bitte gültigen Nachweis beifügen)",null,"Mittag",null,"per Einzugsverfahren, mit Beleg per Postversand (0,84 € pro Beleg)","per Einzugsverfahren, mit Beleg per E-Mail-Versand (ohne weitere Kosten)","per Überweisung, mit Beleg per Postversand (0,84 € pro Beleg)","per Überweisung, mit Beleg per E-Mail-Versand (ohne weitere Kosten)",3.5,4.3499999999999996,3.95,3.6,null,null,null,"Menü mit Salattheke",{"$f":"+M30-0.7","v":2.8},{"$f":"+N30-0.7","v":3.6499999999999995},{"$f":"+O30-0.7","v":3.25}]
[437000,437,"Sek.schule 1 Wolfen-Nord","Einsatz Etiketten","Bildungs- und Teilhabepaket (bitte gültigen Nachweis beifügen)",null,"Mittag",null,"per Einzugsverfahren, mit Beleg per Postversand (0,84 € pro Beleg)","per Einzugsverfahren, mit Beleg per E-Mail-Versand (ohne weitere Kosten)","per Überweisung, mit Beleg per Postversand (0,84 € pro Beleg)","per Überweisung, mit Beleg per E-Mail-Versand (ohne weitere Kosten)",null,null,null,null,"extra Datei",null,null,"Menüschale",null,{"$f":"+N31-0.63","v":-0.63},{"$f":"+O31-0.63","v":-0.63}]
[453000,453,"Sekundarschule Muldenstein","Einsatz RFID-Chipkarten-System","Bildungs- und Teilhabepaket (bitte gültigen Nachweis beifügen)",null,"Mittag",null,"per Einzugsverfahren, mit Beleg per Postversand (0,84 € pro Beleg)","per Einzugsverfahren, mit Beleg per E-Mail-Versand (ohne weitere Kosten)","per Überweisung, mit Beleg per Postversand (0,84 € pro Beleg)","per Überweisung, mit Beleg per E-Mail-Versand (ohne weitere Kosten)",3.15,4,3.8,3.25,null,null,null,"Menü",{"$f":"+M32-0.63","v":2.52},3.37,3.17]
[437600,4376,"Sekundarschule Raguhn","Einsatz Essenmarke","Bildungs- und Teilhabepaket (bitte gültigen Nachweis beifügen)",null,"Mittag",null,"per Einzugsverfahren, mit Beleg per Postversand (0,84 € pro Beleg)","per Einzugsverfahren, mit Beleg per E-Mail-Versand (ohne weitere Kosten)","per Überweisung, mit Beleg per Postversand (0,84 € pro Beleg)","per Überweisung, mit Beleg per E-Mail-Versand (ohne weitere Kosten)",3.15,4,3.8,3.25,null,null,null,"Menü",{"$f":"+M33-0.63","v":2.52},3.37,3.17]
[457000,457,"Theodor-Körner-GS","Einsatz RFID-Chipkarten-System","Bildungs- und Teilhabepaket (bitte gültigen Nachweis beifügen)",null,"Mittag",null,"per Einzugsverfahren, mit Beleg per Postversand (0,84 € pro Beleg)","per Einzugsverfahren, mit Beleg per E-Mail-Versand (ohne weitere Kosten)","per Überweisung, mit Beleg per Postversand (0,84 € pro Beleg)","per Überweisung, mit Beleg per E-Mail-Versand (ohne weitere Kosten)",3.35,4.2,3.85,3.45,null,null,null,"Menü mit Salattheke",{"$f":"+M34-0.7","v":2.6500000000000004},{"$f":"+N34-0.7","v":3.5},{"$f":"+O34-0.7","v":3.1500000000000004}]
[456000,456,"Wilhelm-Busch-GS","Einsatz RFID-Chipkarten-System","Bildungs- und Teilhabepaket (bitte gültigen Nachweis beifügen)",null,"Mittag",null,"per Einzugsverfahren, mit Beleg per Postversand (0,84 € pro Beleg)","per Einzugsverfahren, mit Beleg per E-Mail-Versand (ohne weitere Kosten)","per Überweisung, mit Beleg per Postversand (0,84 € pro Beleg)","per Überweisung, mit Beleg per E-Mail-Versand (ohne weitere Kosten)",3.25,4.0999999999999996,3.85,3.35,null,null,null,"Menü",{"$f":"+M35-0.68","v":2.57},{"$f":"+N35-0.68","v":3.4199999999999995},3.17]
[433000,433,"Friedrich-Fröbel-Grundschule","Einsatz RFID-Chipkarten-System","Bildungs- und Teilhabepaket (bitte gültigen Nachweis beifügen)",null,"Mittag",null,"per Einzugsverfahren, mit Beleg per Postversand (0,84 € pro Beleg)","per Einzugsverfahren, mit Beleg per E-Mail-Versand (ohne weitere Kosten)","per Überweisung, mit Beleg per Postversand (0,84 € pro Beleg)","per Überweisung, mit Beleg per E-Mail-Versand (ohne weitere Kosten)",3.35,4.2,3.85,3.45,null,null,null,"Menü mit Salattheke",{"$f":"+M36-0.7","v":2.6500000000000004},{"$f":"+N36-0.7","v":3.5},{"$f":"+O36-0.7","v":3.1500000000000004}]
[464000,464,"GS Rückmarsdorf","Einsatz RFID-Chipkarten-System","Bildungs- und Teilhabepaket (bitte gültigen Nachweis beifügen)",null,"Mittag",null,"per Einzugsverfahren, mit Beleg per Postversand (0,84 € pro Beleg)","per Einzugsverfahren, mit Beleg per E-Mail-Versand (ohne weitere Kosten)","per Überweisung, mit Beleg per Postversand (0,84 € pro Beleg)","per Überweisung, mit Beleg per E-Mail-Versand (ohne weitere Kosten)",3.25,4.0999999999999996,3.85,3.35,null,null,null,"Menü",{"$f":"+M37-0.68","v":2.57},{"$f":"+N37-0.68","v":3.4199999999999995},{"$f":"+O37-0.68","v":3.17}]
[438000,438,"C.Thieme Grundschule Borna","Einsatz RFID-Chipkarten-System","Bildungs- und Teilhabepaket (bitte gültigen Nachweis beifügen)",null,"Mittag",null,"per Einzugsverfahren, mit Beleg per Postversand (0,84 € pro Beleg)","per Einzugsverfahren, mit Beleg per E-Mail-Versand (ohne weitere Kosten)","per Überweisung, mit Beleg per Postversand (0,84 € pro Beleg)","per Überweisung, mit Beleg per E-Mail-Versand (ohne weitere Kosten)",3.1,3.95,3.55,3.2,null,null,null,"Menü mit Salattheke"]
[464500,464,"Paul-Wäge-Grundschule Dölzig","Einsatz RFID-Chipkarten-System","Bildungs- und Teilhabepaket (bitte gültigen Nachweis beifügen)",null,"Mittag",null,"per Einzugsverfahren, mit Beleg per Postversand (0,84 € pro Beleg)","per Einzugsverfahren, mit Beleg per E-Mail-Versand (ohne weitere Kosten)","per Überweisung, mit Beleg per Postversand (0,84 € pro Beleg)","per Überweisung, mit Beleg per E-Mail-Versand (ohne weitere Kosten)",null,null,null,null,"extra Datei",null,null,"ohne Service"]
[462000,462,"Comeniusschule Halle","Einsatz RFID-Chipkarten-System","Bildungs- und Teilhabepaket (bitte gültigen Nachweis beifügen)",null,"Mittag",null,"per Einzugsverfahren, mit Beleg per Postversand (0,84 € pro Beleg)","per Einzugsverfahren, mit Beleg per E-Mail-Versand (ohne weitere Kosten)","per Überweisung, mit Beleg per Postversand (0,84 € pro Beleg)","per Überweisung, mit Beleg per E-Mail-Versand (ohne weitere Kosten)",3.05,3.8,3.7,3.15,null,null,null,"Menü mit Salattheke"]
[431000,431,"Hort Wiederitzsch","Einsatz RFID-Chipkarten-System","Bildungs- und Teilhabepaket (bitte gültigen Nachweis beifügen)",null,"Mittag",null,"per Einzugsverfahren, mit Beleg per Postversand (0,84 € pro Beleg)","per Einzugsverfahren, mit Beleg per E-Mail-Versand (ohne weitere Kosten)","per Überweisung, mit Beleg per Postversand (0,84 € pro Beleg)","per Überweisung, mit Beleg per E-Mail-Versand (ohne weitere Kosten)",null,null,null,null,"extra Datei",null,null,"Menü mit Salattheke"]
[473000,473,"GS Jesewitz","Einsatz Tagesliste","Bildungs- und Teilhabepaket (bitte gültigen Nachweis beifügen)",null,"Mittag",null,"per Einzugsverfahren, mit Beleg per Postversand (0,84 € pro Beleg)","per Einzugsverfahren, mit Beleg per E-Mail-Versand (ohne weitere Kosten)","per Überweisung, mit Beleg per Postversand (0,84 € pro Beleg)","per Überweisung, mit Beleg per E-Mail-Versand (ohne weitere Kosten)",2.4,2.8,2.4,2.5,null,null,null,"Menü mit Salattheke"]
[455600,4556,"Martin-Schule","Einsatz Tagesliste","Bildungs- und Teilhabepaket (bitte gültigen Nachweis beifügen)",null,"Mittag",null,"per Einzugsverfahren, mit Beleg per Postversand (0,84 € pro Beleg)","per Einzugsverfahren, mit Beleg per E-Mail-Versand (ohne weitere Kosten)","per Überweisung, mit Beleg per Postversand (0,84 € pro Beleg)","per Überweisung, mit Beleg per E-Mail-Versand (ohne weitere Kosten)",3.4,4.25,3.95,3.5]